[Event "Varsity Match 2024"]
[Site "Pall Mall"]
[Date "2024.03.02"]
[Round "1.8"]
[White "Ramaiya, Arushi"]
[Black "Camp, Imogen A L"]
[Result "1/2-1/2"]
[ECO "C39"]
[WhiteElo "1777"]
[BlackElo "1896"]
[Annotator "NA RC"]
[PlyCount "108"]
[EventDate "2024.03.01"]
[EventType "team-tourn"]
[EventCountry "ENG"]
[SourceTitle "playchess.com"]
[Source "ChessBase"]
[SourceQuality "1"]
[TimeControl "40/6600+10:3000+30"]

1. e4 {[%emt 0:00:01]} e5 {[%emt 0:00:14]} 2. f4 {[%emt 0:00:08]} exf4 {[%emt 0:00:31]} 3. Nf3 {[%emt 0:00:08]} g5 {[%emt 0:02:38]} 4. h4 {[%emt 0:00:08]} g4 {[%emt 0:00:05]} 5. Ne5 {[%emt 0:00:09]} d6 {[%emt 0:00:31]} 6. Nxg4 {[%emt 0:01:32]} Be7 {[%emt 0:00:20]} 7. d4 {[%emt 0:27:48]} Bxh4+ {[%emt 0:00:32]} 8. Nf2 {[%emt 0:00:08]} Qg5 {[%emt 0:05:23]} 9. Qf3 {[%emt 0:03:05]} Bg3 {[%emt 0:03:34]} 10. Bc4 {[%emt 0:06:08]} Nc6 {[%emt 0:06:44]} 11. c3 {[%emt 0:00:34]} Nf6 {[%emt 0:09:40]} 12. Kf1 {[%emt 0:03:51]} Bxf2 {[%emt 0:13:16]} 13. Bxf4 {[%emt 0:05:45]} Qg6 {[%emt 0:11:41]} 14. Qxf2 {[%emt 0:16:16]} Nxe4 {[%emt 0:04:57]} 15. Qe3 {[%emt 0:02:05]} Rg8 {[%emt 0:10:41]} 16. g3 {[%emt 0:03:52]} Ne7 {[%emt 0:02:23]} 17. Rh6 {[%emt 0:08:41]} Nxg3+ {[%emt 0:10:28]} 18. Bxg3 {[%emt 0:00:10]} Qxg3 {[%emt 0:02:36]} 19. Bxf7+ {[%emt 0:00:19]} Kf8 {[%emt 0:00:50]} 20. Qxg3 {[%emt 0:06:11]} Rxg3 {[%emt 0:00:06]} 21. Kf2 {[%emt 0:00:35]} Rg5 {[%emt 0:02:08]} 22. Bb3 {[%emt 0:01:04]} Kg7 {[%emt 0:00:29]} 23. Rh2 {[%emt 0:00:39]} Bd7 {[%emt 0:01:22]} 24. Nd2 {[%emt 0:00:11]} Rf8+ {[%emt 0:00:30]} 25. Ke2 {[%emt 0:01:52]} h5 {[%emt 0:02:51]} 26. Ne4 {[%emt 0:00:48]} Bg4+ {[%emt 0:01:22]} 27. Kd2 {[%emt 0:00:31]} Rgf5 {[%emt 0:01:27]} 28. Rg1 {[%emt 0:00:23]} d5 {[%emt 0:03:49]} 29. Ng3 {[%emt 0:00:21]} Rf2+ {[%emt 0:00:11]} 30. Rxf2 {[%emt 0:00:05]} Rxf2+ {[%emt 0:00:07]} 31. Ke1 {[%emt 0:00:08]} Rh2 {[%emt 0:05:44]} 32. Nxh5+ {[%emt 0:00:25]} Rxh5 {[%emt 0:00:10]} 33. Rxg4+ {[%emt 0:00:03]} Kf6 {[%emt 0:00:08]} 34. Rg2 {[%emt 0:00:59]} b6 {[%emt 0:01:08]} 35. Re2 {[%emt 0:00:31]} c5 {[%emt 0:01:05]} 36. Kd2 {[%emt 0:01:22]} Nc6 {[%emt 0:01:50]} 37. Ba4 {[%emt 0:00:52]} Ne7 {[%emt 0:00:21]} 38. Bd7 {[%emt 0:00:42]} Rg5 {[%emt 0:00:53]} 39. dxc5 {[%emt 0:02:20]} bxc5 {[%emt 0:00:05]} 40. Re6+ {[%emt 0:00:35]} Kf7 {[%emt 0:00:10]} 41. Ra6 {[%emt 0:50:54]} Rg2+ {[%emt 0:04:58]} 42. Kc1 {[%emt 0:00:00]} c4 {[%emt 0:20:28]} 43. Be6+ {[%emt 0:00:00]} Kf8 {[%emt 0:00:37]} 44. Rxa7 {[%emt 0:00:00]} Rg1+ {[%emt 0:00:52]} 45. Kd2 {[%emt 0:00:00]} Rg2+ {[%emt 0:00:26]} 46. Ke3 {[%emt 0:00:00]} Rxb2 {[%emt 0:00:27]} 47. Ra8+ {[%emt 0:00:00]} Kg7 {[%emt 0:00:29]} 48. Kd4 {[%emt 0:00:00]} Rd2+ {[%emt 0:01:08]} 49. Kc5 {[%emt 0:00:00]} Kf6 {[%emt 0:07:20]} 50. Bxd5 {[%emt 0:00:00]} Nxd5 {[%emt 0:03:29]} 51. Rd8 {[%emt 0:00:00]} Nxc3 {[%emt 0:07:02]} 52. Rxd2 {[%emt 0:00:00]} Ne4+ {[%emt 0:00:26]} 53. Kxc4 {[%emt 0:00:00]} Nxd2+ {[%emt 0:00:22]} 54. Kb5 {[%emt 0:00:00]} Ke6 {[%emt 0:00:33]} 1/2-1/2